[Event "23rd ETCC Women 2021"]
[Site "Catez"]
[Date "2021.11.12"]
[Round "1.8"]
[White "Gvetadze, Sofio"]
[Black "Motycakova, Monika"]
[Result "1-0"]
[ECO "C77"]
[WhiteElo "2302"]
[BlackElo "2119"]
[Annotator "NA"]
[PlyCount "89"]
[EventDate "2021.11.08"]
[EventType "team-tourn"]
[EventCountry "SLO"]
[SourceTitle "playchess.com"]
[Source "ChessBase"]
[SourceQuality "1"]
[WhiteTeam "Georgia"]
[BlackTeam "Slovakia"]
[WhiteTeamCountry "GEO"]
[BlackTeamCountry "SVK"]
[TimeControl "40/5400+30:1800+30"]

1. e4 {[%emt 0:00:03]} e5 {[%emt 0:00:04]} 2. Nf3 {[%emt 0:00:06]} Nc6 {
[%emt 0:00:05]} 3. Bb5 {[%emt 0:00:11]} a6 {[%emt 0:00:16]} 4. Ba4 {[%emt 0:00:
16]} Nf6 {[%emt 0:00:15]} 5. d3 {[%emt 0:00:18]} d6 {[%emt 0:00:36]} 6. c4 {
[%emt 0:00:24]} g6 {[%emt 0:01:26]} 7. Nc3 {[%emt 0:00:10]} Bg7 {[%emt 0:00:40]
} 8. Nd5 {[%emt 0:00:25]} h6 {[%emt 0:02:37]} 9. Nb4 {[%emt 0:00:25]} Bd7 {
[%emt 0:02:22]} 10. Nxc6 {[%emt 0:00:11]} bxc6 {[%emt 0:03:40]} 11. c5 {
[%emt 0:00:23]} O-O {[%emt 0:01:58]} 12. O-O {[%emt 0:00:34]} Re8 {[%emt 0:07:
57]} 13. Re1 {[%emt 0:01:04]} Nh5 {[%emt 0:23:16]} 14. Be3 {[%emt 0:16:33]} d5
{[%emt 0:02:39]} 15. exd5 {[%emt 0:04:12]} cxd5 {[%emt 0:00:06]} 16. c6 {
[%emt 0:01:29]} Bf5 {[%emt 0:05:17]} 17. d4 {[%emt 0:04:32]} e4 {[%emt 0:10:08]
} 18. Ne5 {[%emt 0:05:18]} Be6 {[%emt 0:04:21]} 19. Rc1 {[%emt 0:25:19]} Kh7 {
[%emt 0:09:02]} 20. g4 {[%emt 0:20:42]} Qh4 {[%emt 0:15:28]} 21. f3 {[%emt 0:
11:23]} Bxe5 {[%emt 0:03:45]} 22. dxe5 {[%emt 0:00:07]} exf3 {[%emt 0:00:29]}
23. Qxf3 {[%emt 0:00:19]} Qxg4+ {[%emt 0:01:39]} 24. Qxg4 {[%emt 0:00:35]} Bxg4
{[%emt 0:00:04]} 25. Bd2 {[%emt 0:00:47]} Ng7 {[%emt 0:02:05]} 26. Rc5 {
[%emt 0:03:30]} Rad8 {[%emt 0:01:50]} 27. Bb3 {[%emt 0:00:35]} Ne6 {[%emt 0:00:
18]} 28. Rxd5 {[%emt 0:01:11]} Bf3 {[%emt 0:00:23]} 29. Rd7 {[%emt 0:02:04]}
Bxc6 {[%emt 0:00:54]} 30. Rxf7+ {[%emt 0:00:14]} Kg8 {[%emt 0:00:32]} 31. Rf6 {
[%emt 0:01:52]} Rxd2 {[%emt 0:00:40]} 32. Bxe6+ {[%emt 0:00:14]} Kg7 {[%emt 0:
00:21]} 33. Rc1 {[%emt 0:00:31]} Bb5 {[%emt 0:01:08]} 34. Rxc7+ {[%emt 0:00:13]
} Kh8 {[%emt 0:00:02]} 35. Rxg6 {[%emt 0:00:51]} Rd1+ {[%emt 0:00:45]} 36. Kg2
{[%emt 0:00:39]} Rd2+ {[%emt 0:00:23]} 37. Kg3 {[%emt 0:00:17]} Rd3+ {[%emt 0:
00:23]} 38. Kh4 {[%emt 0:00:57]} Rd4+ {[%emt 0:00:10]} 39. Kh5 {[%emt 0:00:27]}
Be2+ {[%emt 0:00:31]} 40. Kxh6 {[%emt 0:00:03]} Rh4+ {[%emt 0:00:43]} 41. Kg5 {
[%emt 0:30:02]} Rxh2 {[%emt 0:05:28]} 42. Bf7 {[%emt 0:00:00]} Rg2+ {[%emt 0:
10:57]} 43. Kf4 {[%emt 0:00:00]} Rxg6 {[%emt 0:01:02]} 44. Bxg6 {[%emt 0:00:00]
} Rb8 {[%emt 0:01:42]} 45. b3 {[%emt 0:00:00]} 1-0

[Event "23rd ETCC Women 2021"]
[Site "Catez"]
[Date "2021.11.12"]
[Round "1.9"]
[White "Zawadzka, Jolanta"]
[Black "Avramidou, Anastasia"]
[Result "1-0"]
[ECO "B69"]
[WhiteElo "2429"]
[BlackElo "2217"]
[Annotator "ChessBase"]
[PlyCount "145"]
[EventDate "2021.11.08"]
[EventType "team-tourn"]
[EventCountry "SLO"]
[SourceTitle "playchess.com"]
[Source "ChessBase"]
[SourceQuality "1"]
[WhiteTeam "Poland"]
[BlackTeam "Greece"]
[WhiteTeamCountry "POL"]
[BlackTeamCountry "GRE"]
[TimeControl "40/5400+30:1800+30"]

1. e4 {[%emt 0:00:05]} c5 {[%emt 0:00:09]} 2. Nf3 {[%emt 0:00:10]} d6 {[%emt 0:
00:07]} 3. d4 {[%emt 0:00:04]} cxd4 {[%emt 0:00:06]} 4. Nxd4 {[%emt 0:00:03]}
Nf6 {[%emt 0:00:16]} 5. Nc3 {[%emt 0:00:04]} Nc6 {[%emt 0:00:51]} 6. Bg5 {
[%emt 0:01:21]} e6 {[%emt 0:00:36]} 7. Qd2 {[%emt 0:00:25]} Be7 {[%emt 0:01:53]
} 8. O-O-O {[%emt 0:02:17]} a6 {[%emt 0:08:17]} 9. f4 {[%emt 0:02:10]} Bd7 {
[%emt 0:02:03]} 10. Nf3 {[%emt 0:00:35]} b5 {[%emt 0:08:12]} 11. Bxf6 {[%emt 0:
02:37]} gxf6 {[%emt 0:00:57]} 12. f5 {[%emt 0:00:18]} Qc7 {[%emt 0:12:19]} 13.
Kb1 {[%emt 0:03:35]} Rb8 {[%emt 0:09:41]} 14. fxe6 {[%emt 0:04:10]} fxe6 {
[%emt 0:01:44]} 15. Qh6 {[%emt 0:06:24]} Kd8 {[%emt 0:17:45]} 16. g3 {[%emt 0:
09:08]} Kc8 {[%emt 0:03:58]} 17. Bh3 {[%emt 0:03:09]} Kb7 {[%emt 0:02:19]} 18.
Ne2 {[%emt 0:03:36]} Rbe8 {[%emt 0:11:31]} 19. Rhf1 {[%emt 0:06:52]} Qc8 {
[%emt 0:03:46]} 20. Nfd4 {[%emt 0:02:13]} Bd8 {[%emt 0:07:01]} 21. Nxc6 {
[%emt 0:04:22]} Bxc6 {[%emt 0:00:06]} 22. Rxd6 {[%emt 0:10:28]} Bxe4 {[%emt 0:
03:04]} 23. Nc3 {[%emt 0:00:11]} Bc6 {[%emt 0:01:55]} 24. Qd2 {[%emt 0:01:05]}
Kb8 {[%emt 0:01:01]} 25. a4 {[%emt 0:02:24]} Qb7 {[%emt 0:02:11]} 26. axb5 {
[%emt 0:02:10]} axb5 {[%emt 0:00:06]} 27. Rxe6 {[%emt 0:00:58]} Rxe6 {[%emt 0:
00:50]} 28. Bxe6 {[%emt 0:00:04]} Bc7 {[%emt 0:01:01]} 29. Bd5 {[%emt 0:04:11]}
Rd8 {[%emt 0:00:16]} 30. Bxc6 {[%emt 0:00:30]} Rxd2 {[%emt 0:00:48]} 31. Bxb7 {
[%emt 0:00:04]} Kxb7 {[%emt 0:00:07]} 32. Rxf6 {[%emt 0:08:38]} Rxh2 {[%emt 0:
00:09]} 33. Ne4 {[%emt 0:02:33]} Rh5 {[%emt 0:01:17]} 34. c3 {[%emt 0:13:38]}
Re5 {[%emt 0:00:22]} 35. Rf4 {[%emt 0:00:22]} Re7 {[%emt 0:00:37]} 36. Rh4 {
[%emt 0:00:06]} Rg7 {[%emt 0:00:22]} 37. Rh5 {[%emt 0:01:44]} Kc6 {[%emt 0:00:
19]} 38. Ng5 {[%emt 0:02:48]} Rg6 {[%emt 0:00:53]} 39. Nf3 {[%emt 0:00:21]}
Bxg3 {[%emt 0:00:30]} 40. Nd4+ {[%emt 0:00:19]} Kb6 {[%emt 0:00:27]} 41. Rxb5+
{[%emt 0:30:25]} Ka6 {[%emt 0:02:10]} 42. Rf5 {[%emt 0:00:00]} h6 {[%emt 0:07:
25]} 43. Kc2 {[%emt 0:00:00]} Be1 {[%emt 0:04:44]} 44. Nf3 {[%emt 0:00:00]} Bg3
{[%emt 0:01:56]} 45. b4 {[%emt 0:00:00]} Bd6 {[%emt 0:02:43]} 46. Kb3 {[%emt 0:
00:00]} Kb7 {[%emt 0:02:49]} 47. c4 {[%emt 0:00:00]} Rg4 {[%emt 0:06:59]} 48.
Ne5 {[%emt 0:00:00]} Rg5 {[%emt 0:03:11]} 49. Nf7 {[%emt 0:00:00]} Rg3+ {
[%emt 0:00:26]} 50. Ka4 {[%emt 0:00:00]} Bc7 {[%emt 0:00:57]} 51. Nxh6 {
[%emt 0:00:00]} Rg6 {[%emt 0:00:08]} 52. Nf7 {[%emt 0:00:00]} Ra6+ {[%emt 0:00:
05]} 53. Kb3 {[%emt 0:00:00]} Re6 {[%emt 0:00:20]} 54. c5 {[%emt 0:00:00]} Kc6
{[%emt 0:01:42]} 55. Ka4 {[%emt 0:00:00]} Re1 {[%emt 0:00:05]} 56. b5+ {
[%emt 0:00:00]} Kb7 {[%emt 0:00:05]} 57. Ng5 {[%emt 0:05:22]} Ra1+ {[%emt 0:00:
31]} 58. Kb4 {[%emt 0:00:09]} Rb1+ {[%emt 0:00:07]} 59. Kc4 {[%emt 0:00:04]}
Rc1+ {[%emt 0:00:09]} 60. Kd3 {[%emt 0:00:07]} Ba5 {[%emt 0:03:16]} 61. Rf7+ {
[%emt 0:01:13]} Kb8 {[%emt 0:00:11]} 62. Ne6 {[%emt 0:00:28]} Bb4 {[%emt 0:00:
58]} 63. c6 {[%emt 0:00:30]} Bd6 {[%emt 0:00:36]} 64. Rb7+ {[%emt 0:00:53]} Ka8
{[%emt 0:00:25]} 65. Rd7 {[%emt 0:01:06]} Bg3 {[%emt 0:00:18]} 66. Nd4 {
[%emt 0:01:00]} Rb1 {[%emt 0:00:29]} 67. Kc4 {[%emt 0:01:13]} Bb8 {[%emt 0:00:
44]} 68. Nb3 {[%emt 0:00:42]} Rb2 {[%emt 0:00:31]} 69. b6 {[%emt 0:00:23]} Rc2+
{[%emt 0:00:05]} 70. Kb5 {[%emt 0:00:45]} Rb2 {[%emt 0:00:26]} 71. Ka6 {
[%emt 0:00:46]} Rxb3 {[%emt 0:00:06]} 72. b7+ {[%emt 0:00:04]} Rxb7 {[%emt 0:
00:06]} 73. cxb7# {[%emt 0:00:04]} 1-0

[Event "23rd ETCC Women 2021"]
[Site "Catez"]
[Date "2021.11.12"]
[Round "1.10"]
[White "Pavlidou, Ekaterini"]
[Black "Cyfka, Karina"]
[Result "1/2-1/2"]
[ECO "D27"]
[WhiteElo "2172"]
[BlackElo "2416"]
[Annotator "NA"]
[PlyCount "100"]
[EventDate "2021.11.08"]
[EventType "team-tourn"]
[EventCountry "SLO"]
[SourceTitle "playchess.com"]
[Source "ChessBase"]
[SourceQuality "1"]
[WhiteTeam "Greece"]
[BlackTeam "Poland"]
[WhiteTeamCountry "GRE"]
[BlackTeamCountry "POL"]
[TimeControl "40/5400+30:1800+30"]

1. d4 {[%emt 0:00:19]} Nf6 {[%emt 0:00:14]} 2. c4 {[%emt 0:00:13]} e6 {[%emt 0:
00:34]} 3. Nc3 {[%emt 0:00:13]} Bb4 {[%emt 0:00:20]} 4. e3 {[%emt 0:00:12]} O-O
{[%emt 0:00:56]} 5. Bd3 {[%emt 0:00:12]} c5 {[%emt 0:02:20]} 6. Nf3 {[%emt 0:
00:53]} d5 {[%emt 0:05:19]} 7. O-O {[%emt 0:02:03]} cxd4 {[%emt 0:14:33]} 8.
exd4 {[%emt 0:00:13]} dxc4 {[%emt 0:00:07]} 9. Bxc4 {[%emt 0:00:12]} a6 {
[%emt 0:00:02]} 10. a3 {[%emt 0:04:14]} Be7 {[%emt 0:03:34]} 11. Re1 {[%emt 0:
07:42]} b5 {[%emt 0:03:24]} 12. Ba2 {[%emt 0:00:55]} Bb7 {[%emt 0:03:34]} 13.
Bg5 {[%emt 0:01:55]} Nbd7 {[%emt 0:06:51]} 14. Qe2 {[%emt 0:05:49]} Nb6 {
[%emt 0:06:35]} 15. Rad1 {[%emt 0:04:23]} Nbd5 {[%emt 0:10:04]} 16. Nxd5 {
[%emt 0:15:31]} Nxd5 {[%emt 0:02:50]} 17. Bc1 {[%emt 0:00:10]} Rc8 {[%emt 0:03:
42]} 18. Bb1 {[%emt 0:06:48]} g6 {[%emt 0:10:22]} 19. Bh6 {[%emt 0:04:06]} Re8
{[%emt 0:00:44]} 20. Rd3 {[%emt 0:03:15]} Bf8 {[%emt 0:04:06]} 21. Bg5 {
[%emt 0:04:40]} f6 {[%emt 0:01:13]} 22. Bd2 {[%emt 0:03:31]} Bd6 {[%emt 0:01:
22]} 23. Nh4 {[%emt 0:03:05]} Kg7 {[%emt 0:03:01]} 24. Rh3 {[%emt 0:01:10]} f5
{[%emt 0:03:54]} 25. Bh6+ {[%emt 0:06:18]} Kg8 {[%emt 0:01:18]} 26. Qd2 {
[%emt 0:01:25]} Qc7 {[%emt 0:03:15]} 27. g3 {[%emt 0:05:01]} Nf6 {[%emt 0:03:
22]} 28. f3 {[%emt 0:00:49]} Bd5 {[%emt 0:03:04]} 29. Rf1 {[%emt 0:01:02]} b4 {
[%emt 0:01:00]} 30. a4 {[%emt 0:00:47]} Qb7 {[%emt 0:01:03]} 31. Qg5 {[%emt 0:
00:47]} Qf7 {[%emt 0:00:49]} 32. g4 {[%emt 0:02:36]} Be7 {[%emt 0:00:47]} 33.
gxf5 {[%emt 0:00:32]} exf5 {[%emt 0:00:55]} 34. Nxf5 {[%emt 0:01:07]} Be6 {
[%emt 0:01:31]} 35. Nxe7+ {[%emt 0:01:19]} Rxe7 {[%emt 0:00:02]} 36. Rh4 {
[%emt 0:02:08]} Nd5 {[%emt 0:00:34]} 37. Be4 {[%emt 0:00:19]} Rd7 {[%emt 0:00:
57]} 38. Re1 {[%emt 0:02:52]} Re8 {[%emt 0:00:34]} 39. Qg3 {[%emt 0:04:34]}
Rdd8 {[%emt 0:00:33]} 40. Bxd5 {[%emt 0:03:09]} Bxd5 {[%emt 0:00:13]} 41. Rf4 {
[%emt 0:30:35]} Qd7 {[%emt 0:03:58]} 42. Rf6 {[%emt 0:00:00]} Bf7 {[%emt 0:03:
00]} 43. Rxe8+ {[%emt 0:00:00]} Rxe8 {[%emt 0:00:07]} 44. Qf4 {[%emt 0:00:00]}
Qxa4 {[%emt 0:06:00]} 45. Rxf7 {[%emt 0:00:00]} Qd1+ {[%emt 0:00:20]} 46. Kg2 {
[%emt 0:00:00]} Qe2+ {[%emt 0:05:57]} 47. Kg3 {[%emt 0:00:00]} Qe1+ {[%emt 0:
01:06]} 48. Kg2 {[%emt 0:00:00]} Qe2+ {[%emt 0:05:14]} 49. Kg3 {[%emt 0:00:00]}
Qe1+ {[%emt 0:00:09]} 50. Kg2 {[%emt 0:00:00]} Qe2+ {[%emt 0:02:35]} 1/2-1/2

[Event "23rd ETCC Women 2021"]
[Site "Catez"]
[Date "2021.11.12"]
[Round "1.11"]
[White "Kiolbasa, Oliwia"]
[Black "Markantonaki, Haritomeni"]
[Result "1-0"]
[ECO "C92"]
[WhiteElo "2403"]
[BlackElo "2174"]
[Annotator "NA"]
[PlyCount "61"]
[EventDate "2021.11.08"]
[EventType "team-tourn"]
[EventCountry "SLO"]
[SourceTitle "playchess.com"]
[Source "ChessBase"]
[SourceQuality "1"]
[WhiteTeam "Poland"]
[BlackTeam "Greece"]
[WhiteTeamCountry "POL"]
[BlackTeamCountry "GRE"]
[TimeControl "40/5400+30:1800+30"]

1. e4 {[%emt 0:00:04]} e5 {[%emt 0:00:09]} 2. Nf3 {[%emt 0:00:11]} Nc6 {
[%emt 0:00:07]} 3. Bb5 {[%emt 0:00:11]} a6 {[%emt 0:00:15]} 4. Ba4 {[%emt 0:00:
08]} Nf6 {[%emt 0:00:19]} 5. O-O {[%emt 0:00:33]} b5 {[%emt 0:00:30]} 6. Bb3 {
[%emt 0:00:15]} Bb7 {[%emt 0:00:09]} 7. Re1 {[%emt 0:01:13]} Be7 {[%emt 0:00:
56]} 8. c3 {[%emt 0:01:38]} O-O {[%emt 0:02:32]} 9. d4 {[%emt 0:03:00]} d6 {
[%emt 0:02:57]} 10. h3 {[%emt 0:00:57]} exd4 {[%emt 0:09:33]} 11. cxd4 {
[%emt 0:02:35]} d5 {[%emt 0:00:21]} 12. exd5 {[%emt 0:14:43]} Nb4 {[%emt 0:05:
57]} 13. Nc3 {[%emt 0:12:04]} Nbxd5 {[%emt 0:04:16]} 14. Bg5 {[%emt 0:02:43]}
Nxc3 {[%emt 0:17:30]} 15. bxc3 {[%emt 0:00:33]} h6 {[%emt 0:00:44]} 16. Bh4 {
[%emt 0:03:23]} c5 {[%emt 0:05:34]} 17. Qe2 {[%emt 0:07:50]} Bd6 {[%emt 0:08:
23]} 18. dxc5 {[%emt 0:03:39]} Bxc5 {[%emt 0:00:43]} 19. Ne5 {[%emt 0:03:52]}
Qb6 {[%emt 0:06:23]} 20. Qc2 {[%emt 0:03:43]} Rad8 {[%emt 0:06:12]} 21. Qf5 {
[%emt 0:06:36]} Bc8 {[%emt 0:04:00]} 22. Qf4 {[%emt 0:11:40]} a5 {[%emt 0:04:
45]} 23. Rab1 {[%emt 0:07:48]} Rd6 {[%emt 0:09:37]} 24. a4 {[%emt 0:09:09]} Be6
{[%emt 0:06:03]} 25. Bxf6 {[%emt 0:01:35]} gxf6 {[%emt 0:02:00]} 26. Ng4 {
[%emt 0:00:57]} Bxg4 {[%emt 0:01:00]} 27. Qxg4+ {[%emt 0:00:26]} Kh8 {[%emt 0:
00:29]} 28. Qf4 {[%emt 0:01:04]} Kg7 {[%emt 0:00:48]} 29. Bc2 {[%emt 0:00:26]}
Re6 {[%emt 0:02:09]} 30. Qg4+ {[%emt 0:00:20]} Kh8 {[%emt 0:00:05]} 31. Qf5 {
[%emt 0:00:13]} 1-0

[Event "23rd ETCC Women 2021"]
[Site "Catez"]
[Date "2021.11.12"]
[Round "1.13"]
[White "Klinova, Masha"]
[Black "Ushenina, Anna"]
[Result "0-1"]
[ECO "B52"]
[WhiteElo "2264"]
[BlackElo "2426"]
[Annotator "NA"]
[PlyCount "70"]
[EventDate "2021.11.08"]
[EventType "team-tourn"]
[EventCountry "SLO"]
[SourceTitle "playchess.com"]
[Source "ChessBase"]
[SourceQuality "1"]
[WhiteTeam "Israel"]
[BlackTeam "Ukraine"]
[WhiteTeamCountry "ISR"]
[BlackTeamCountry "UKR"]
[TimeControl "40/5400+30:1800+30"]

1. e4 {[%emt 0:00:05]} c5 {[%emt 0:00:14]} 2. Nf3 {[%emt 0:00:07]} d6 {[%emt 0:
00:15]} 3. Bb5+ {[%emt 0:00:16]} Bd7 {[%emt 0:00:21]} 4. Bxd7+ {[%emt 0:00:21]}
Qxd7 {[%emt 0:00:08]} 5. c4 {[%emt 0:01:49]} Nc6 {[%emt 0:05:17]} 6. Nc3 {
[%emt 0:00:32]} g6 {[%emt 0:02:05]} 7. d4 {[%emt 0:00:13]} cxd4 {[%emt 0:00:22]
} 8. Nxd4 {[%emt 0:00:06]} Bg7 {[%emt 0:04:55]} 9. Be3 {[%emt 0:00:15]} Nf6 {
[%emt 0:00:09]} 10. f3 {[%emt 0:00:26]} O-O {[%emt 0:00:46]} 11. Rc1 {[%emt 0:
00:42]} a6 {[%emt 0:01:34]} 12. O-O {[%emt 0:01:16]} Nxd4 {[%emt 0:00:32]} 13.
Bxd4 {[%emt 0:00:32]} b5 {[%emt 0:00:14]} 14. Nd5 {[%emt 0:03:23]} Nxd5 {
[%emt 0:03:36]} 15. cxd5 {[%emt 0:00:50]} Bh6 {[%emt 0:06:31]} 16. Rc2 {
[%emt 0:25:02]} Rfc8 {[%emt 0:06:05]} 17. Rff2 {[%emt 0:03:56]} e5 {[%emt 0:01:
11]} 18. dxe6 {[%emt 0:01:12]} Qxe6 {[%emt 0:00:19]} 19. b3 {[%emt 0:15:02]} d5
{[%emt 0:01:03]} 20. e5 {[%emt 0:01:12]} Bf4 {[%emt 0:00:34]} 21. Qa1 {[%emt 0:
15:04]} Qf5 {[%emt 0:15:59]} 22. Qb2 {[%emt 0:02:47]} Qd3 {[%emt 0:10:26]} 23.
g3 {[%emt 0:02:38]} Qd1+ {[%emt 0:07:14]} 24. Kg2 {[%emt 0:00:24]} Bc1 {
[%emt 0:00:15]} 25. Rxc8+ {[%emt 0:10:12]} Rxc8 {[%emt 0:00:05]} 26. Qa1 {
[%emt 0:00:04]} Qd3 {[%emt 0:00:58]} 27. e6 {[%emt 0:03:07]} fxe6 {[%emt 0:04:
19]} 28. Bh8 {[%emt 0:00:24]} Bh6 {[%emt 0:00:37]} 29. Qe5 {[%emt 0:03:50]} Qf5
{[%emt 0:07:16]} 30. Qd4 {[%emt 0:00:32]} Rc2 {[%emt 0:07:58]} 31. Rxc2 {
[%emt 0:01:55]} Qxc2+ {[%emt 0:00:02]} 32. Kh3 {[%emt 0:00:10]} Qxa2 {[%emt 0:
06:09]} 33. Qh4 {[%emt 0:02:06]} Bf8 {[%emt 0:05:05]} 34. Be5 {[%emt 0:02:51]}
Qb1 {[%emt 0:00:59]} 35. Qd4 {[%emt 0:01:01]} Qf1+ {[%emt 0:00:45]} 0-1

[Event "23rd ETCC Women 2021"]
[Site "Catez"]
[Date "2021.11.12"]
[Round "1.14"]
[White "Buksa, Nataliya"]
[Black "Shapir, Maya"]
[Result "1-0"]
[ECO "B45"]
[WhiteElo "2410"]
[BlackElo "2256"]
[Annotator "NA"]
[PlyCount "109"]
[EventDate "2021.11.08"]
[EventType "team-tourn"]
[EventCountry "SLO"]
[SourceTitle "playchess.com"]
[Source "ChessBase"]
[SourceQuality "1"]
[WhiteTeam "Ukraine"]
[BlackTeam "Israel"]
[WhiteTeamCountry "UKR"]
[BlackTeamCountry "ISR"]
[TimeControl "40/5400+30:1800+30"]

1. e4 {[%emt 0:00:03]} c5 {[%emt 0:00:33]} 2. Nf3 {[%emt 0:00:07]} e6 {[%emt 0:
00:15]} 3. d4 {[%emt 0:00:49]} cxd4 {[%emt 0:00:05]} 4. Nxd4 {[%emt 0:00:03]}
Nf6 {[%emt 0:00:07]} 5. Nc3 {[%emt 0:00:06]} Nc6 {[%emt 0:00:04]} 6. Nxc6 {
[%emt 0:00:49]} bxc6 {[%emt 0:00:05]} 7. e5 {[%emt 0:00:04]} Nd5 {[%emt 0:00:
06]} 8. Ne4 {[%emt 0:00:05]} Qc7 {[%emt 0:00:09]} 9. f4 {[%emt 0:00:07]} Qb6 {
[%emt 0:00:14]} 10. c4 {[%emt 0:00:19]} Bb4+ {[%emt 0:00:17]} 11. Ke2 {[%emt 0:
00:06]} f5 {[%emt 0:00:53]} 12. exf6 {[%emt 0:00:21]} Nxf6 {[%emt 0:00:23]} 13.
Be3 {[%emt 0:00:03]} Qc7 {[%emt 0:07:04]} 14. Nxf6+ {[%emt 0:01:17]} gxf6 {
[%emt 0:00:05]} 15. Kf2 {[%emt 0:00:03]} d5 {[%emt 0:49:04]} 16. cxd5 {[%emt 0:
10:50]} exd5 {[%emt 0:00:10]} 17. Rc1 {[%emt 0:00:29]} Bd6 {[%emt 0:14:07]} 18.
Qh5+ {[%emt 0:15:15]} Qf7 {[%emt 0:02:02]} 19. Qxf7+ {[%emt 0:01:00]} Kxf7 {
[%emt 0:00:06]} 20. Rxc6 {[%emt 0:00:02]} Rd8 {[%emt 0:02:00]} 21. Bd3 {
[%emt 0:02:13]} Bb7 {[%emt 0:01:33]} 22. Rc2 {[%emt 0:00:30]} d4 {[%emt 0:02:
30]} 23. Bd2 {[%emt 0:00:11]} h5 {[%emt 0:01:59]} 24. Rhc1 {[%emt 0:00:32]}
Rac8 {[%emt 0:01:53]} 25. Bc4+ {[%emt 0:16:38]} Kg7 {[%emt 0:01:27]} 26. Be6 {
[%emt 0:05:31]} Rxc2 {[%emt 0:00:05]} 27. Rxc2 {[%emt 0:00:02]} Be4 {[%emt 0:
00:49]} 28. Rc8 {[%emt 0:04:37]} Rxc8 {[%emt 0:00:23]} 29. Bxc8 {[%emt 0:00:04]
} Bc6 {[%emt 0:05:47]} 30. Bf5 {[%emt 0:07:19]} Bd5 {[%emt 0:01:12]} 31. b3 {
[%emt 0:00:54]} Kf7 {[%emt 0:02:05]} 32. Bd3 {[%emt 0:02:29]} Kg7 {[%emt 0:01:
23]} 33. g3 {[%emt 0:00:34]} Ba3 {[%emt 0:02:24]} 34. Ke2 {[%emt 0:01:56]} Bd6
{[%emt 0:01:34]} 35. Bf5 {[%emt 0:00:51]} Bc7 {[%emt 0:01:22]} 36. Kd3 {
[%emt 0:11:09]} Bg2 {[%emt 0:00:05]} 37. a4 {[%emt 0:06:39]} Bf1+ {[%emt 0:00:
54]} 38. Kxd4 {[%emt 0:00:05]} Bb6+ {[%emt 0:00:04]} 39. Kd5 {[%emt 0:00:04]}
Bg1 {[%emt 0:00:17]} 40. h3 {[%emt 0:00:39]} Bf2 {[%emt 0:00:32]} 41. b4 {
[%emt 0:07:31]} Bxg3 {[%emt 0:31:42]} 42. Be3 {[%emt 0:28:41]} a6 {[%emt 0:01:
55]} 43. Kc5 {[%emt 0:07:04]} h4 {[%emt 0:00:00]} 44. b5 {[%emt 0:00:00]} axb5
{[%emt 0:00:00]} 45. axb5 {[%emt 0:00:00]} Bg2 {[%emt 0:00:00]} 46. b6 {
[%emt 0:00:00]} Kh6 {[%emt 0:00:00]} 47. Kd6 {[%emt 0:00:00]} Be1 {[%emt 0:00:
00]} 48. Kc7 {[%emt 0:00:00]} Bg3 {[%emt 0:00:00]} 49. b7 {[%emt 0:00:00]} Bxb7
{[%emt 0:00:00]} 50. Kxb7 {[%emt 0:00:00]} Kh5 {[%emt 0:00:00]} 51. Bd7 {
[%emt 0:00:00]} f5 {[%emt 0:00:00]} 52. Kc7 {[%emt 0:00:00]} Kg6 {[%emt 0:00:
00]} 53. Kd6 {[%emt 0:00:00]} Kf6 {[%emt 0:00:00]} 54. Be8 {[%emt 0:00:00]} Kg7
{[%emt 0:00:00]} 55. Ke5 {[%emt 0:00:00]} 1-0

[Event "23rd ETCC Women 2021"]
[Site "Catez"]
[Date "2021.11.12"]
[Round "1.15"]
[White "Levitan, Ronit"]
[Black "Gaponenko, Inna"]
[Result "0-1"]
[ECO "B08"]
[WhiteElo "2068"]
[BlackElo "2339"]
[Annotator "ChessBase"]
[PlyCount "110"]
[EventDate "2021.11.08"]
[EventType "team-tourn"]
[EventCountry "SLO"]
[SourceTitle "playchess.com"]
[Source "ChessBase"]
[SourceQuality "1"]
[WhiteTeam "Israel"]
[BlackTeam "Ukraine"]
[WhiteTeamCountry "ISR"]
[BlackTeamCountry "UKR"]
[TimeControl "40/5400+30:1800+30"]

1. e4 {[%emt 0:00:52]} d6 {[%emt 0:00:24]} 2. d4 {[%emt 0:00:25]} g6 {[%emt 0:
00:07]} 3. Nf3 {[%emt 0:00:43]} Nf6 {[%emt 0:00:10]} 4. Nc3 {[%emt 0:01:03]}
Bg7 {[%emt 0:00:10]} 5. h3 {[%emt 0:01:02]} O-O {[%emt 0:02:29]} 6. Be3 {
[%emt 0:00:53]} a6 {[%emt 0:03:19]} 7. Be2 {[%emt 0:01:02]} Nc6 {[%emt 0:16:12]
} 8. d5 {[%emt 0:29:09]} Nb8 {[%emt 0:06:47]} 9. a4 {[%emt 0:00:42]} e6 {
[%emt 0:32:23]} 10. O-O {[%emt 0:02:51]} h6 {[%emt 0:06:34]} 11. Qd2 {[%emt 0:
03:11]} Kh7 {[%emt 0:00:06]} 12. Rad1 {[%emt 0:02:21]} e5 {[%emt 0:03:37]} 13.
Nh2 {[%emt 0:05:57]} Ng8 {[%emt 0:01:40]} 14. f4 {[%emt 0:16:16]} exf4 {
[%emt 0:00:43]} 15. Rxf4 {[%emt 0:01:42]} Nd7 {[%emt 0:00:42]} 16. Rdf1 {
[%emt 0:01:58]} Ne5 {[%emt 0:03:12]} 17. Bd4 {[%emt 0:05:34]} Qe7 {[%emt 0:02:
59]} 18. Ng4 {[%emt 0:06:44]} Bxg4 {[%emt 0:03:38]} 19. hxg4 {[%emt 0:01:31]}
Nf6 {[%emt 0:02:58]} 20. Qd1 {[%emt 0:04:50]} Nfd7 {[%emt 0:02:27]} 21. Nb1 {
[%emt 0:02:38]} Bf6 {[%emt 0:03:13]} 22. Bxe5 {[%emt 0:03:41]} Bxe5 {[%emt 0:
02:12]} 23. R4f3 {[%emt 0:03:28]} Nf6 {[%emt 0:00:51]} 24. Re3 {[%emt 0:00:30]}
Kg7 {[%emt 0:02:03]} 25. c3 {[%emt 0:00:36]} Nd7 {[%emt 0:01:30]} 26. Nd2 {
[%emt 0:01:32]} Qg5 {[%emt 0:00:16]} 27. Rh3 {[%emt 0:01:01]} Bf4 {[%emt 0:02:
05]} 28. Nf3 {[%emt 0:00:55]} Qe7 {[%emt 0:00:33]} 29. Bd3 {[%emt 0:01:06]}
Rae8 {[%emt 0:00:56]} 30. Nd4 {[%emt 0:00:15]} Bg5 {[%emt 0:00:11]} 31. Nf3 {
[%emt 0:00:42]} Be3+ {[%emt 0:00:29]} 32. Kh1 {[%emt 0:00:05]} Nc5 {[%emt 0:00:
41]} 33. Re1 {[%emt 0:00:58]} Bf4 {[%emt 0:00:24]} 34. Bc2 {[%emt 0:00:08]} Nd7
{[%emt 0:00:28]} 35. Rf1 {[%emt 0:00:29]} Nf6 {[%emt 0:00:33]} 36. Nd4 {
[%emt 0:00:47]} Bg5 {[%emt 0:00:29]} 37. Nf3 {[%emt 0:00:37]} Nxg4 {[%emt 0:00:
24]} 38. Nxg5 {[%emt 0:00:33]} Qxg5 {[%emt 0:00:04]} 39. Qd4+ {[%emt 0:00:10]}
Re5 {[%emt 0:00:47]} 40. Bd1 {[%emt 0:00:33]} Nf6 {[%emt 0:00:57]} 41. Bc2 {
[%emt 0:02:43]} Nh5 {[%emt 0:16:22]} 42. Qf2 {[%emt 0:03:01]} Qe7 {[%emt 0:01:
19]} 43. Qe3 {[%emt 0:05:40]} Rg5 {[%emt 0:01:59]} 44. Bd1 {[%emt 0:04:14]} Nf6
{[%emt 0:01:52]} 45. Rf4 {[%emt 0:00:52]} Qe5 {[%emt 0:02:29]} 46. Rfh4 {
[%emt 0:03:37]} h5 {[%emt 0:00:24]} 47. a5 {[%emt 0:03:53]} Re8 {[%emt 0:00:53]
} 48. Qd2 {[%emt 0:05:01]} Rg3 {[%emt 0:02:56]} 49. Rxg3 {[%emt 0:01:36]} Qxg3
{[%emt 0:00:02]} 50. Rh3 {[%emt 0:00:08]} Nxe4 {[%emt 0:01:55]} 51. Rxg3 {
[%emt 0:00:53]} Nxd2 {[%emt 0:00:06]} 52. Kg1 {[%emt 0:01:52]} Re1+ {[%emt 0:
00:36]} 53. Kf2 {[%emt 0:00:05]} Rxd1 {[%emt 0:00:27]} 54. Ke2 {[%emt 0:00:07]}
Ne4 {[%emt 0:01:51]} 55. Re3 {[%emt 0:00:05]} Rd2+ {[%emt 0:00:11]} 0-1